[Event "WYCC 2018 G16"]
[Site "Halkidiki"]
[Date "2018.10.26"]
[Round "7"]
[White "Moerwald, Magdalena"]
[Black "Ortega Beltran, Ximena"]
[Result "1/2-1/2"]
[ECO "B35"]
[WhiteElo "1875"]
[BlackElo "1628"]
[Annotator "NA"]
[PlyCount "70"]
[EventDate "2018.10.20"]
[EventType "swiss"]
[EventCountry "GRE"]
[SourceTitle "playchess.com"]
[Source "ChessBase"]
[SourceQuality "1"]
[TimeControl "40/5400+30:1800+30"]

1. e4 {[%emt 0:00:00]} c5 {[%emt 0:00:00]} 2. Nf3 {[%emt 0:00:00]} g6 {[%emt 0:00:00]} 3. d4 {[%emt 0:00:00]} cxd4 {[%emt 0:00:00]} 4. Nxd4 {[%emt 0:00:00]} Bg7 {[%emt 0:00:00]} 5. Nc3 {[%emt 0:00:15]} Nc6 {[%emt 0:00:08]} 6. Be3 {[%emt 0:00:10]} Nf6 {[%emt 0:00:07]} 7. Bc4 {[%emt 0:00:19]} O-O {[%emt 0:00:10]} 8. Bb3 {[%emt 0:00:19]} d6 {[%emt 0:01:10]} 9. f3 {[%emt 0:00:20]} Bd7 {[%emt 0:00:51]} 10. Qd2 {[%emt 0:00:15]} Na5 {[%emt 0:00:12]} 11. h4 {[%emt 0:02:44]} Nxb3 {[%emt 0:00:51]} 12. Nxb3 {[%emt 0:02:36]} h5 {[%emt 0:01:17]} 13. O-O-O {[%emt 0:02:34]} b5 {[%emt 0:01:20]} 14. g4 {[%emt 0:13:47]} hxg4 {[%emt 0:17:10]} 15. h5 {[%emt 0:04:37]} Nxh5 16. Bh6 {[%emt 0:03:26]} e5 {[%emt 0:06:51]} 17. Bxg7 {[%emt 0:04:16]} Kxg7 {[%emt 0:23:03]} 18. fxg4 {[%emt 0:00:30]} Bxg4 {[%emt 0:00:30]} 19. Rdg1 {[%emt 0:04:40]} Bf3 {[%emt 0:05:42]} 20. Rh3 {[%emt 0:03:38]} b4 {[%emt 0:01:00]} 21. Nd5 {[%emt 0:04:32]} Bxe4 {[%emt 0:00:56]} 22. Rxh5 {[%emt 0:01:20]} Bxd5 {[%emt 0:01:13]} 23. Qxd5 {[%emt 0:00:53]} Qb6 {[%emt 0:00:35]} 24. Rhh1 {[%emt 0:13:54]} a5 {[%emt 0:10:43]} 25. Nd2 {[%emt 0:00:30]} Rac8 {[%emt 0:17:56]} 26. Kb1 {[%emt 0:07:02]} Rh8 {[%emt 0:03:01]} 27. Nc4 {[%emt 0:04:18]} Qf2 {[%emt 0:07:33]} 28. Rc1 {[%emt 0:06:32]} Rc5 {[%emt 0:00:33]} 29. Qxd6 {[%emt 0:08:18]} Rxh1 {[%emt 0:00:16]} 30. Rxh1 {[%emt 0:00:31]} Qg2 {[%emt 0:00:31]} 31. Rd1 {[%emt 0:03:30]} Rxc4 {[%emt 0:00:03]} 32. Qxe5+ {[%emt 0:00:21]} Kh7 {[%emt 0:00:01]} 33. Rc1 {[%emt 0:00:34]} a4 {[%emt 0:01:53]} 34. Qe8 {[%emt 0:00:35]} Kg7 {[%emt 0:00:36]} 35. Qxa4 {[%emt 0:00:21]} Qc6 {[%emt 0:00:07]} 1/2-1/2

[Event "WYCC 2018 G16"]
[Site "Halkidiki"]
[Date "2018.10.26"]
[Round "7"]
[White "Nayberg, Simona"]
[Black "Cotun, Mihaela"]
[Result "1-0"]
[ECO "B22"]
[WhiteElo "1857"]
[BlackElo "1482"]
[Annotator "NA"]
[PlyCount "61"]
[EventDate "2018.10.20"]
[EventType "swiss"]
[EventCountry "GRE"]
[SourceTitle "playchess.com"]
[Source "ChessBase"]
[SourceQuality "1"]
[TimeControl "40/5400+30:1800+30"]

1. e4 {[%emt 0:00:00]} c5 {[%emt 0:00:00]} 2. c3 {[%emt 0:00:00]} d6 {[%emt 0:00:00]} 3. d4 {[%emt 0:00:04]} Nf6 {[%emt 0:00:00]} 4. Bd3 {[%emt 0:01:59]} e5 {[%emt 0:00:41]} 5. Ne2 {[%emt 0:05:07]} Nc6 {[%emt 0:02:31]} 6. d5 {[%emt 0:02:38]} Ne7 {[%emt 0:02:58]} 7. O-O {[%emt 0:01:34]} g6 {[%emt 0:01:06]} 8. f4 {[%emt 0:03:49]} exf4 {[%emt 0:03:56]} 9. Bxf4 {[%emt 0:02:19]} Bg7 {[%emt 0:02:03]} 10. Qd2 {[%emt 0:01:40]} O-O {[%emt 0:02:03]} 11. Na3 {[%emt 0:02:33]} Ng4 {[%emt 0:13:03]} 12. Nc4 {[%emt 0:07:20]} Ne5 {[%emt 0:09:24]} 13. Nxe5 {[%emt 0:05:46]} dxe5 {[%emt 0:01:20]} 14. Bg5 {[%emt 0:01:16]} Qd6 {[%emt 0:01:07]} 15. Bc4 {[%emt 0:05:35]} f6 {[%emt 0:06:19]} 16. Bh4 {[%emt 0:05:04]} Bd7 {[%emt 0:05:55]} 17. a4 {[%emt 0:03:54]} a5 {[%emt 0:06:22]} 18. Nc1 {[%emt 0:09:08]} Nc8 {[%emt 0:02:31]} 19. Qe2 {[%emt 0:07:03]} Nb6 {[%emt 0:03:29]} 20. Bb5 {[%emt 0:01:50]} c4 {[%emt 0:21:07]} 21. Bf2 {[%emt 0:11:49]} Bxb5 {[%emt 0:03:45]} 22. axb5 {[%emt 0:00:14]} Rfc8 {[%emt 0:01:05]} 23. b3 {[%emt 0:05:52]} cxb3 {[%emt 0:08:14]} 24. Nxb3 {[%emt 0:01:57]} a4 {[%emt 0:00:58]} 25. Nc1 {[%emt 0:04:51]} Rxc3 {[%emt 0:01:59]} 26. Na2 {[%emt 0:02:57]} Rc7 {[%emt 0:00:33]} 27. Rac1 {[%emt 0:00:49]} Rac8 {[%emt 0:00:17]} 28. Rxc7 {[%emt 0:03:10]} Rxc7 {[%emt 0:00:05]} 29. Qe3 {[%emt 0:01:20]} Nd7 {[%emt 0:01:04]} 30. Qa7 {[%emt 0:00:40]} Qa3 {[%emt 0:00:34]} 31. Qa8+ {[%emt 0:01:12]} 1-0

[Event "WYCC 2018 G16"]
[Site "Halkidiki"]
[Date "2018.10.26"]
[Round "7"]
[White "Nguyen, Vu Thu Hien"]
[Black "Ros Alonso, Joana"]
[Result "1/2-1/2"]
[ECO "A46"]
[WhiteElo "1841"]
[BlackElo "1952"]
[Annotator "NA"]
[PlyCount "88"]
[EventDate "2018.10.20"]
[EventType "swiss"]
[EventCountry "GRE"]
[SourceTitle "playchess.com"]
[Source "ChessBase"]
[SourceQuality "1"]
[TimeControl "40/5400+30:1800+30"]

1. d4 {[%emt 0:00:00]} Nf6 {[%emt 0:00:00]} 2. Nf3 {[%emt 0:00:00]} b5 {[%emt 0:00:00]} 3. g3 {[%emt 0:00:19]} Bb7 {[%emt 0:00:03]} 4. Bg2 {[%emt 0:00:06]} e6 {[%emt 0:00:09]} 5. O-O {[%emt 0:00:11]} c5 {[%emt 0:00:09]} 6. c3 {[%emt 0:19:14]} Be7 {[%emt 0:00:11]} 7. Bf4 {[%emt 0:01:55]} O-O {[%emt 0:00:37]} 8. Nbd2 {[%emt 0:03:04]} Na6 {[%emt 0:00:25]} 9. Re1 {[%emt 0:22:54]} d5 {[%emt 0:00:31]} 10. Ne5 {[%emt 0:01:18]} b4 {[%emt 0:05:09]} 11. dxc5 {[%emt 0:04:58]} Bxc5 {[%emt 0:07:03]} 12. cxb4 {[%emt 0:01:15]} Nxb4 {[%emt 0:00:49]} 13. a3 {[%emt 0:02:42]} Nc6 {[%emt 0:04:25]} 14. Nxc6 {[%emt 0:08:34]} Bxc6 {[%emt 0:00:12]} 15. b4 {[%emt 0:00:17]} Bxf2+ {[%emt 0:08:01]} 16. Kxf2 {[%emt 0:00:28]} Ng4+ {[%emt 0:00:42]} 17. Kg1 {[%emt 0:00:43]} e5 {[%emt 0:00:25]} 18. e3 {[%emt 0:01:09]} f5 {[%emt 0:05:39]} 19. h3 {[%emt 0:02:02]} exf4 {[%emt 0:03:20]} 20. hxg4 {[%emt 0:00:03]} fxg3 {[%emt 0:06:43]} 21. Nf1 {[%emt 0:01:16]} f4 {[%emt 0:07:07]} 22. exf4 {[%emt 0:04:31]} Qb6+ {[%emt 0:03:09]} 23. Kh1 {[%emt 0:03:31]} Rf6 {[%emt 0:14:39]} 24. Re5 {[%emt 0:05:30]} Qf2 {[%emt 0:12:36]} 25. Qf3 {[%emt 0:03:33]} Rxf4 {[%emt 0:07:06]} 26. Qxf2 {[%emt 0:01:56]} gxf2 {[%emt 0:00:17]} 27. Rc1 {[%emt 0:00:49]} Re8 {[%emt 0:05:35]} 28. Rxe8+ {[%emt 0:00:29]} Bxe8 {[%emt 0:00:05]} 29. Bxd5+ {[%emt 0:00:10]} Kf8 {[%emt 0:00:05]} 30. Rc4 {[%emt 0:00:17]} Rf6 {[%emt 0:01:28]} 31. Kg2 {[%emt 0:00:30]} Bd7 {[%emt 0:01:59]} 32. Bf3 {[%emt 0:03:34]} Bb5 {[%emt 0:05:21]} 33. Rc3 {[%emt 0:00:06]} Bd7 {[%emt 0:01:23]} 34. Rc2 {[%emt 0:02:03]} h5 {[%emt 0:00:35]} 35. gxh5 {[%emt 0:00:17]} Bh3+ {[%emt 0:00:21]} 36. Kxh3 {[%emt 0:02:28]} Rxf3+ {[%emt 0:00:02]} 37. Kg4 {[%emt 0:00:16]} Rxa3 {[%emt 0:00:17]} 38. Rxf2+ {[%emt 0:00:05]} Kg8 {[%emt 0:00:20]} 39. Rb2 {[%emt 0:00:17]} Ra6 {[%emt 0:01:08]} 40. Kg5 {[%emt 0:00:00]} Rb6 {[%emt 0:00:00]} 41. Ne3 {[%emt 0:06:59]} Rb5+ {[%emt 0:00:21]} 42. Kg4 {[%emt 0:00:45]} a5 {[%emt 0:00:19]} 43. Nc2 {[%emt 0:00:29]} Kh7 {[%emt 0:01:21]} 44. Rb3 {[%emt 0:01:09]} Kh6 {[%emt 0:01:41]} 1/2-1/2

[Event "WYCC 2018 G16"]
[Site "Halkidiki"]
[Date "2018.10.26"]
[Round "7"]
[White "Kalyva, Kyriaki"]
[Black "Bania, Eleni"]
[Result "1-0"]
[ECO "A80"]
[WhiteElo "1779"]
[BlackElo "1454"]
[Annotator "NA"]
[PlyCount "61"]
[EventDate "2018.10.20"]
[EventType "swiss"]
[EventCountry "GRE"]
[SourceTitle "playchess.com"]
[Source "ChessBase"]
[SourceQuality "1"]
[TimeControl "40/5400+30:1800+30"]

1. d4 {[%emt 0:00:00]} f5 {[%emt 0:00:00]} 2. Nc3 {[%emt 0:00:00]} Nf6 {[%emt 0:00:29]} 3. Bg5 {[%emt 0:00:43]} d5 {[%emt 0:08:15]} 4. f3 {[%emt 0:04:54]} e6 {[%emt 0:03:37]} 5. e3 {[%emt 0:03:55]} Be7 {[%emt 0:06:27]} 6. Bd3 {[%emt 0:03:32]} O-O {[%emt 0:01:30]} 7. Nge2 {[%emt 0:02:47]} c6 {[%emt 0:02:42]} 8. Qd2 {[%emt 0:03:06]} Nbd7 {[%emt 0:05:48]} 9. O-O {[%emt 0:05:41]} Qe8 {[%emt 0:14:06]} 10. e4 {[%emt 0:09:29]} Nb6 {[%emt 0:08:11]} 11. Ng3 {[%emt 0:04:38]} fxe4 {[%emt 0:07:59]} 12. fxe4 {[%emt 0:00:09]} Qd8 {[%emt 0:05:16]} 13. e5 {[%emt 0:01:52]} Nfd7 {[%emt 0:02:04]} 14. Bxe7 {[%emt 0:01:11]} Qxe7 {[%emt 0:03:00]} 15. Rxf8+ {[%emt 0:03:56]} Qxf8 {[%emt 0:01:30]} 16. Rf1 {[%emt 0:00:43]} Qe7 {[%emt 0:00:22]} 17. Qf4 {[%emt 0:07:35]} a6 {[%emt 0:05:09]} 18. Qg4 {[%emt 0:07:50]} c5 {[%emt 0:04:33]} 19. Nh5 {[%emt 0:06:14]} cxd4 {[%emt 0:02:28]} 20. Nf6+ {[%emt 0:00:48]} Nxf6 {[%emt 0:01:02]} 21. exf6 {[%emt 0:00:07]} Qf7 {[%emt 0:00:34]} 22. fxg7 {[%emt 0:02:12]} Qxg7 {[%emt 0:03:05]} 23. Bxh7+ {[%emt 0:04:51]} Kxh7 {[%emt 0:03:30]} 24. Qh5+ {[%emt 0:00:13]} Kg8 {[%emt 0:00:04]} 25. Qe8+ {[%emt 0:00:21]} Kh7 {[%emt 0:00:04]} 26. Rf4 {[%emt 0:02:57]} Kh6 {[%emt 0:03:00]} 27. Rh4+ {[%emt 0:02:06]} Kg5 {[%emt 0:00:15]} 28. Qd8+ {[%emt 0:00:57]} Qf6 {[%emt 0:03:17]} 29. Rg4+ {[%emt 0:01:04]} Kxg4 {[%emt 0:00:37]} 30. Qxf6 {[%emt 0:00:08]} dxc3 {[%emt 0:00:04]} 31. h3+ {[%emt 0:00:13]} 1-0

[Event "WYCC 2018 G16"]
[Site "Halkidiki"]
[Date "2018.10.26"]
[Round "7"]
[White "Staravoitava, Hanna"]
[Black "Sankova, Stella"]
[Result "1-0"]
[ECO "B90"]
[WhiteElo "1768"]
[BlackElo "2051"]
[Annotator "NA"]
[PlyCount "83"]
[EventDate "2018.10.20"]
[EventType "swiss"]
[EventCountry "GRE"]
[SourceTitle "playchess.com"]
[Source "ChessBase"]
[SourceQuality "1"]
[TimeControl "40/5400+30:1800+30"]

1. e4 {[%emt 0:00:00]} c5 {[%emt 0:00:00]} 2. Nf3 {[%emt 0:00:00]} d6 {[%emt 0:00:00]} 3. d4 {[%emt 0:00:00]} cxd4 {[%emt 0:00:00]} 4. Nxd4 {[%emt 0:00:00]} Nf6 {[%emt 0:00:00]} 5. Nc3 $14 {[%emt 0:00:01] LiveBook: 99691 Games} a6 {[%emt 0:00:00]} 6. Be3 {[%emt 0:00:10]} e5 {[%emt 0:00:04]} 7. Nb3 {[%emt 0:00:09]} Be6 {[%emt 0:00:04]} 8. Be2 {[%emt 0:00:10]} Nbd7 {[%emt 0:01:42]} 9. f4 {[%emt 0:03:54]} exf4 {[%emt 0:02:13]} 10. Bxf4 {[%emt 0:00:04]} Ne5 {[%emt 0:00:07]} 11. Qd4 {[%emt 0:00:16]} Qc7 {[%emt 0:02:24]} 12. Nd5 {[%emt 0:16:42]} Bxd5 {[%emt 0:02:12]} 13. exd5 {[%emt 0:00:08]} Be7 {[%emt 0:01:27]} 14. c4 {[%emt 0:02:29]} O-O {[%emt 0:05:19]} 15. O-O {[%emt 0:00:16]} Nfd7 {[%emt 0:07:06]} 16. Rac1 {[%emt 0:04:29]} Bf6 {[%emt 0:10:23]} 17. Qf2 {[%emt 0:01:14]} Ng6 {[%emt 0:04:30]} 18. Bg3 {[%emt 0:15:55]} Bxb2 {[%emt 0:04:12]} 19. c5 {[%emt 0:04:01]} Be5 {[%emt 0:00:25]} 20. c6 {[%emt 0:01:46]} Nf6 {[%emt 0:06:25]} 21. Bxe5 {[%emt 0:07:59]} Nxe5 {[%emt 0:01:19]} 22. Nd4 {[%emt 0:07:44]} Nxd5 {[%emt 0:15:39]} 23. Nf5 {[%emt 0:00:08]} bxc6 {[%emt 0:02:08]} 24. Qg3 {[%emt 0:06:51]} g6 {[%emt 0:03:18]} 25. Bc4 {[%emt 0:01:11]} Kh8 {[%emt 0:08:27]} 26. Bxd5 {[%emt 0:04:47]} Qb6+ {[%emt 0:00:11]} 27. Kh1 {[%emt 0:01:15]} cxd5 {[%emt 0:00:49]} 28. Ne3 {[%emt 0:00:45]} d4 {[%emt 0:09:41]} 29. Nd5 {[%emt 0:00:07]} Qd8 {[%emt 0:00:41]} 30. Qf4 {[%emt 0:02:52]} d3 {[%emt 0:02:25]} 31. Qh6 {[%emt 0:01:10]} f5 {[%emt 0:01:25]} 32. Nc7 {[%emt 0:00:14]} Qd7 {[%emt 0:04:21]} 33. Nxa8 {[%emt 0:00:22]} Rxa8 {[%emt 0:00:00]} 34. Rc3 {[%emt 0:01:20]} Qg7 {[%emt 0:02:50]} 35. Qd2 {[%emt 0:00:27]} h6 {[%emt 0:01:27]} 36. Rfc1 {[%emt 0:00:08]} Ra7 {[%emt 0:00:08]} 37. Rc8+ {[%emt 0:02:12]} Kh7 {[%emt 0:00:03]} 38. Qa5 {[%emt 0:00:25]} g5 {[%emt 0:01:51]} 39. R8c7 {[%emt 0:00:33]} Rxc7 {[%emt 0:00:04]} 40. Rxc7 {[%emt 0:00:00]} Nf7 {[%emt 0:00:00]} 41. Qxf5+ {[%emt 0:00:15]} Kh8 {[%emt 0:02:08]} 42. Rc8+ {[%emt 0:00:06]} 1-0

[Event "WYCC 2018 G16"]
[Site "Halkidiki"]
[Date "2018.10.26"]
[Round "7"]
[White "Hovhannisyan, Mane"]
[Black "Pecorini, Angie"]
[Result "1-0"]
[ECO "A48"]
[WhiteElo "1730"]
[BlackElo "1847"]
[Annotator "NA"]
[PlyCount "57"]
[EventDate "2018.10.20"]
[EventType "swiss"]
[EventCountry "GRE"]
[SourceTitle "playchess.com"]
[Source "ChessBase"]
[SourceQuality "1"]
[TimeControl "40/5400+30:1800+30"]

1. d4 {[%emt 0:00:00]} Nf6 {[%emt 0:00:00]} 2. Nf3 {[%emt 0:00:00]} g6 {[%emt 0:00:00]} 3. Bf4 {[%emt 0:00:00]} Bg7 {[%emt 0:00:00]} 4. e3 {[%emt 0:00:00]} c5 {[%emt 0:00:16]} 5. c3 {[%emt 0:00:00]} b6 {[%emt 0:00:07]} 6. Be2 {[%emt 0:00:00]} Bb7 {[%emt 0:00:07]} 7. O-O {[%emt 0:00:00]} O-O {[%emt 0:00:34]} 8. Nbd2 {[%emt 0:00:04]} d6 {[%emt 0:00:08]} 9. h3 {[%emt 0:00:03]} Nbd7 {[%emt 0:00:36]} 10. a4 {[%emt 0:00:07]} a6 {[%emt 0:00:04]} 11. Qb3 {[%emt 0:00:03]} Qc7 {[%emt 0:00:50]} 12. Qa3 {[%emt 0:07:51]} Bc6 {[%emt 0:02:22]} 13. b4 {[%emt 0:05:27]} cxb4 {[%emt 0:23:43]} 14. cxb4 {[%emt 0:00:20]} Qb7 {[%emt 0:01:52]} 15. Nc4 {[%emt 0:10:53]} Ne4 {[%emt 0:00:35]} 16. Rac1 {[%emt 0:06:08]} g5 {[%emt 0:04:53]} 17. Bh2 {[%emt 0:03:58]} h5 {[%emt 0:11:53]} 18. Rfd1 {[%emt 0:05:43]} g4 {[%emt 0:13:57]} 19. hxg4 {[%emt 0:00:32]} hxg4 {[%emt 0:00:51]} 20. Ne1 {[%emt 0:00:46]} f5 {[%emt 0:01:23]} 21. Nb2 {[%emt 0:02:21]} b5 {[%emt 0:05:31]} 22. Rc2 {[%emt 0:11:46]} Nb6 {[%emt 0:08:28]} 23. Rdc1 {[%emt 0:01:53]} Rfc8 {[%emt 0:00:38]} 24. a5 {[%emt 0:00:14]} Nd7 {[%emt 0:06:03]} 25. Qb3+ {[%emt 0:00:17]} Kh8 {[%emt 0:12:49]} 26. Qe6 {[%emt 0:02:21]} g3 {[%emt 0:00:53]} 27. fxg3 {[%emt 0:01:01]} Bd5 {[%emt 0:01:32]} 28. Qxf5 {[%emt 0:05:04]} Bh6 {[%emt 0:01:23]} 29. Nd1 {[%emt 0:02:38]} 1-0

[Event "WYCC 2018 G16"]
[Site "Halkidiki"]
[Date "2018.10.26"]
[Round "7"]
[White "Sanabria Taskila, Jenny Maria"]
[Black "Miroshnik, Ekaterina"]
[Result "1-0"]
[ECO "C05"]
[WhiteElo "1728"]
[BlackElo "2023"]
[Annotator "NA"]
[PlyCount "95"]
[EventDate "2018.10.20"]
[EventType "swiss"]
[EventCountry "GRE"]
[SourceTitle "playchess.com"]
[Source "ChessBase"]
[SourceQuality "1"]
[TimeControl "40/5400+30:1800+30"]

1. e4 {[%emt 0:00:00]} e6 {[%emt 0:00:00]} 2. d4 {[%emt 0:00:00]} d5 {[%emt 0:00:00]} 3. Nd2 {[%emt 0:00:00]} Nf6 {[%emt 0:00:00]} 4. e5 {[%emt 0:00:00]} Nfd7 {[%emt 0:00:00]} 5. f4 {[%emt 0:00:00]} c5 {[%emt 0:00:00]} 6. c3 {[%emt 0:00:00]} Nc6 {[%emt 0:00:00]} 7. Ndf3 {[%emt 0:00:04]} Be7 {[%emt 0:00:41]} 8. a3 {[%emt 0:00:34]} a5 {[%emt 0:02:18]} 9. b3 {[%emt 0:01:28]} cxd4 {[%emt 0:04:06]} 10. cxd4 {[%emt 0:00:50]} Nb6 {[%emt 0:02:58]} 11. Bd3 {[%emt 0:08:20]} Bd7 {[%emt 0:04:05]} 12. Ne2 {[%emt 0:02:35]} Na7 {[%emt 0:09:48]} 13. Nc3 {[%emt 0:06:27]} Rc8 {[%emt 0:02:18]} 14. Bd2 {[%emt 0:04:47]} O-O {[%emt 0:05:12]} 15. h4 {[%emt 0:02:46]} g6 {[%emt 0:11:23]} 16. Ng5 {[%emt 0:21:11]} a4 {[%emt 0:15:28]} 17. Qg4 {[%emt 0:24:30]} h5 {[%emt 0:10:49]} 18. Qd1 {[%emt 0:06:10]} Kg7 {[%emt 0:07:52]} 19. g4 {[%emt 0:02:44]} Rh8 {[%emt 0:04:42]} 20. f5 {[%emt 0:02:11]} exf5 {[%emt 0:04:21]} 21. gxf5 {[%emt 0:00:37]} f6 {[%emt 0:04:58]} 22. e6 {[%emt 0:04:57]} fxg5 {[%emt 0:01:53]} 23. exd7 {[%emt 0:00:08]} Rc6 {[%emt 0:02:39]} 24. Qf3 {[%emt 0:03:21]} g4 {[%emt 0:01:12]} 25. Qf2 {[%emt 0:01:24]} Rf8 {[%emt 0:02:22]} 26. O-O-O {[%emt 0:00:20]} gxf5 {[%emt 0:00:58]} 27. Rde1 {[%emt 0:05:38]} Qxd7 {[%emt 0:00:42]} 28. Re5 {[%emt 0:00:32]} Qc7 {[%emt 0:00:59]} 29. Kb2 {[%emt 0:01:01]} axb3 {[%emt 0:01:02]} 30. Nxd5 {[%emt 0:01:14]} Nxd5 {[%emt 0:00:19]} 31. Rxd5 {[%emt 0:00:09]} Ra6 {[%emt 0:01:28]} 32. Rxf5 {[%emt 0:01:16]} Bxa3+ {[%emt 0:00:26]} 33. Kb1 {[%emt 0:00:23]} Be7 {[%emt 0:00:42]} 34. Rxf8 {[%emt 0:00:28]} Bxf8 {[%emt 0:00:12]} 35. Qf5 {[%emt 0:00:29]} Kg8 {[%emt 0:00:59]} 36. Bxa6 {[%emt 0:00:31]} bxa6 {[%emt 0:00:06]} 37. Rf1 {[%emt 0:00:27]} Bg7 {[%emt 0:00:27]} 38. Qd5+ {[%emt 0:00:25]} Kh8 {[%emt 0:00:23]} 39. Qxh5+ {[%emt 0:00:17]} Kg8 {[%emt 0:00:01]} 40. Qd5+ {[%emt 0:00:00]} Kh8 {[%emt 0:00:00]} 41. Qxb3 {[%emt 0:04:45]} Nb5 {[%emt 0:00:51]} 42. Rf5 {[%emt 0:07:14]} Na3+ {[%emt 0:09:19]} 43. Qxa3 {[%emt 0:08:06]} Qb6+ {[%emt 0:00:17]} 44. Kc1 {[%emt 0:01:18]} Qc6+ {[%emt 0:01:42]} 45. Rc5 {[%emt 0:01:35]} Qh1+ {[%emt 0:00:17]} 46. Kc2 {[%emt 0:00:15]} Qe4+ {[%emt 0:01:00]} 47. Qd3 {[%emt 0:00:13]} Qe8 {[%emt 0:00:02]} 48. Qxa6 {[%emt 0:01:25]} 1-0

[Event "WYCC 2018 G16"]
[Site "Halkidiki"]
[Date "2018.10.26"]
[Round "7"]
[White "Plaza Reino, Mercedes"]
[Black "Esadze, Tamari"]
[Result "1-0"]
[ECO "E14"]
[WhiteElo "1727"]
[BlackElo "1911"]
[Annotator "NA"]
[PlyCount "91"]
[EventDate "2018.10.20"]
[EventType "swiss"]
[EventCountry "GRE"]
[SourceTitle "playchess.com"]
[Source "ChessBase"]
[SourceQuality "1"]
[TimeControl "40/5400+30:1800+30"]

1. d4 {[%emt 0:00:00]} Nf6 {[%emt 0:00:00]} 2. c4 {[%emt 0:00:00]} e6 {[%emt 0:00:00]} 3. Nf3 {[%emt 0:00:00]} b6 {[%emt 0:00:00]} 4. e3 {[%emt 0:01:06]} Bb7 {[%emt 0:01:01]} 5. Be2 {[%emt 0:01:10]} Bb4+ {[%emt 0:00:28]} 6. Nbd2 {[%emt 0:00:18]} O-O {[%emt 0:02:44]} 7. a3 {[%emt 0:00:22]} Bxd2+ {[%emt 0:00:08]} 8. Qxd2 {[%emt 0:00:08]} Ne4 {[%emt 0:00:49]} 9. Qc2 {[%emt 0:00:42]} d6 {[%emt 0:00:28]} 10. O-O {[%emt 0:00:39]} f5 {[%emt 0:02:14]} 11. b4 {[%emt 0:00:34]} Nd7 {[%emt 0:02:56]} 12. d5 {[%emt 0:01:51]} e5 {[%emt 0:16:03]} 13. Nd2 {[%emt 0:00:22]} Nxd2 {[%emt 0:06:54]} 14. Bxd2 Qh4 15. f3 {[%emt 0:04:08]} f4 {[%emt 0:10:12]} 16. Bd3 {[%emt 0:04:46]} fxe3 {[%emt 0:14:42]} 17. Bxe3 {[%emt 0:00:12]} Nf6 {[%emt 0:02:35]} 18. Qf2 {[%emt 0:09:20]} Qh5 {[%emt 0:05:41]} 19. Qg3 {[%emt 0:02:51]} Qf7 {[%emt 0:06:45]} 20. Bg5 {[%emt 0:05:42]} Nh5 {[%emt 0:02:29]} 21. Qh4 {[%emt 0:01:48]} h6 {[%emt 0:01:04]} 22. Bd2 {[%emt 0:03:54]} g5 {[%emt 0:04:30]} 23. Qe1 {[%emt 0:05:56]} Nf4 {[%emt 0:02:50]} 24. Be4 {[%emt 0:02:38]} Rae8 {[%emt 0:03:00]} 25. g3 {[%emt 0:13:02]} Nh3+ {[%emt 0:00:20]} 26. Kg2 {[%emt 0:02:09]} Bc8 {[%emt 0:00:13]} 27. Qb1 {[%emt 0:01:59]} Kg7 {[%emt 0:02:45]} 28. Qc2 {[%emt 0:01:36]} Qh5 {[%emt 0:04:48]} 29. Be3 {[%emt 0:06:36]} g4 {[%emt 0:00:44]} 30. c5 {[%emt 0:08:23]} Ba6 {[%emt 0:02:18]} 31. cxd6 {[%emt 0:03:31]} Bxf1+ {[%emt 0:01:21]} 32. Rxf1 {[%emt 0:00:16]} Ng5 {[%emt 0:02:50]} 33. Bxg5 {[%emt 0:03:10]} Qh3+ {[%emt 0:00:08]} 34. Kg1 {[%emt 0:00:56]} hxg5 {[%emt 0:00:32]} 35. dxc7 {[%emt 0:03:48]} gxf3 {[%emt 0:00:17]} 36. Rxf3 {[%emt 0:03:19]} Rxf3 {[%emt 0:00:35]} 37. Bxf3 {[%emt 0:00:03]} e4 {[%emt 0:03:09]} 38. Bxe4 {[%emt 0:02:00]} Qg4 {[%emt 0:00:10]} 39. d6 {[%emt 0:03:07]} Qe6 {[%emt 0:00:54]} 40. Qd3 {[%emt 0:00:00]} Qe5 {[%emt 0:00:00]} 41. d7 {[%emt 0:04:13]} Qa1+ {[%emt 0:05:55]} 42. Kg2 {[%emt 0:02:19]} Rxe4 {[%emt 0:06:28]} 43. c8=Q {[%emt 0:09:38]} Rd4 {[%emt 0:05:00]} 44. Qxd4+ {[%emt 0:11:52]} Qxd4 {[%emt 0:00:04]} 45. d8=Q {[%emt 0:00:19]} Qb2+ {[%emt 0:01:39]} 46. Kh3 {[%emt 0:00:30]} 1-0